Workbook

Sheet Home
E21: =IF(Monday!G21+Monday!P21=60,"Sorry, full.","Monday still has seats") -> Monday still has seats | I21: =IF(Wensday!F20+Wensday!P20=60, "Sorry, Full.", "Wensday still have seats") -> Wensday still have seats | M21: =IF(Friday!F20+Friday!P20=60, "Sorry, Full.", "Friday still have seats") -> Friday still have seats

Sheet Monday
A1: Monday Sessions
C4: Free | D4: Free | E4: Free | F4: Free | G4: Free | H4: Free | M4: Adult | N4: Adult | O4: Adult | P4: Adult | Q4: Adult | R4: Adult
C5: Free | D5: Special | E5: Special | F5: Special | G5: Special | H5: Free | M5: Adult | N5: Adult | O5: Adult | P5: Adult | Q5: Adult | R5: Adult
C6: Free | D6: Special | E6: Special | F6: Special | G6: Special | H6: Free | M6: Adult | N6: Adult | O6: Adult | P6: Adult | Q6: Adult | R6: Adult
C7: Free | D7: Special | E7: Special | F7: Special | G7: Special | H7: Free | M7: Adult | N7: Adult | O7: Adult | P7: Adult | Q7: Adult | R7: Adult
C8: Free | D8: Free | E8: Free | F8: Free | G8: Free | H8: Free | M8: Adult | N8: Adult | O8: Adult | P8: Adult | Q8: Adult | R8: Adult
C10: Morning Class | M10: Evening Class
E15: Morning Class | N15: Evening Class
E16: Amount of total seats | G16: 30 | N16: Amount of total seats | P16: 30
E17: Free | G17: =COUNTIF(monday_morn,"Free") -> 18 | N17: Free | P17: =COUNTIF(Mon_even,"Free") -> 0
E18: Student | G18: =COUNTIF(monday_morn,"Student") -> 0 | N18: Student | P18: =COUNTIF(Mon_even,"Student") -> 0
E19: Adults | G19: =COUNTIF(monday_morn,"Adult") -> 0 | N19: Adults | P19: =COUNTIF(Mon_even,"Adult") -> 30
E20: Discount | G20: =COUNTIF(monday_morn,"Special") -> 12 | N20: Discount | P20: =COUNTIF(Mon_even,"Special") -> 0
E21: Total Attending | G21: =SUM(G18:G20) -> 12 | N21: Total Attending | P21: =SUM(P18:P20) -> 30
E22: Percentage | G22: =G21/30 -> 0.4 | N22: Percentage | P22: =P21/30 -> 1
E23: Class Complete? | G23: =IF(G22>=60%,"Class Complete","Class Denied") -> Class Denied | N23: Class Complete? | P23: =IF(P22>=60%,"Class Complete","Class Denied") -> Class Complete

Sheet Wensday
A1: Wednesday Sessions
C4: Adult | D4: Free | E4: Free | F4: Adult | G4: Adult | H4: Adult | M4: Free | N4: Free | O4: Free | P4: Free | Q4: Adult | R4: Adult
C5: Adult | D5: Free | E5: Free | F5: Adult | G5: Adult | H5: Adult | M5: Free | N5: Free | O5: Free | P5: Free | Q5: Adult | R5: Adult
C6: Adult | D6: Free | E6: Free | F6: Adult | G6: Adult | H6: Adult | M6: Free | N6: Free | O6: Free | P6: Free | Q6: Adult | R6: Adult
C7: Adult | D7: Free | E7: Free | F7: Adult | G7: Adult | H7: Adult | M7: Free | N7: Free | O7: Free | P7: Free | Q7: Adult | R7: Adult
C8: Adult | D8: Free | E8: Free | F8: Adult | G8: Adult | H8: Adult | M8: Free | N8: Free | O8: Free | P8: Free | Q8: Adult | R8: Adult
C10: Morning Class | M10: Evening Class
C14: Morning Class | M14: Evening Class
C15: Total Seats | F15: 30 | M15: Total Seats | P15: 30
C16: Seats Free | F16: =COUNTIF(C4:H8,"Free") -> 10 | M16: Seats Free | P16: =COUNTIF(M4:R8,"Free") -> 20
C17: Adults | F17: =COUNTIF(C4:H8,"Adult") -> 20 | M17: Adults | P17: =COUNTIF(M4:R8,"Adult") -> 10
C18: Student | F18: =COUNTIF(C4:H8,"Student") -> 0 | M18: Student | P18: =COUNTIF(M4:R8,"Student") -> 0
C19: Discount | F19: =COUNTIF(C4:H8,"Special") -> 0 | M19: Discount | P19: =COUNTIF(M4:R8,"Special") -> 0
C20: Total Attending | F20: =SUM(F17:F19) -> 20 | M20: Total Attending | P20: =SUM(P17:P19) -> 10
C21: Percentage | F21: =F20/F15 -> 0.6666666667 | M21: Percentage | P21: =P20/P15 -> 0.3333333333
C22: Class? :3 | F22: =IF(F21>=60%,"Yes","No") -> Yes | M22: Class? :3 | P22: =IF(P21>=60%,"Yes","No") -> No

Sheet Friday
A1: Friday Sessions
C4: Adult | D4: Free | E4: Free | F4: Free | G4: Free | H4: Free | M4: Free | N4: Free | O4: Free | P4: Free | Q4: Free | R4: Free
C5: Adult | D5: Free | E5: Free | F5: Free | G5: Free | H5: Free | M5: Free | N5: Free | O5: Free | P5: Free | Q5: Free | R5: Free
C6: Adult | D6: Free | E6: Free | F6: Free | G6: Free | H6: Free | M6: Free | N6: Free | O6: Free | P6: Adult | Q6: Free | R6: Free
C7: Adult | D7: Student | E7: Free | F7: Free | G7: Free | H7: Free | M7: Free | N7: Free | O7: Free | P7: Free | Q7: Free | R7: Free
C8: Adult | D8: Free | E8: Free | F8: Free | G8: Free | H8: Free | M8: Free | N8: Free | O8: Free | P8: Free | Q8: Free | R8: Free
C10: Morning Class | M10: Evening Class
C14: Morning Class | M14: Evening Class
C15: Total Seats | F15: 30 | M15: Total Seats | P15: 30
C16: Seats Free | F16: =COUNTIF(C4:H8,"Free") -> 24 | M16: Seats Free | P16: =COUNTIF(M4:R8,"Free") -> 29
C17: Adult | F17: =COUNTIF(C4:H8,"Adult") -> 5 | M17: Adult | P17: =COUNTIF(M4:R8,"Adult") -> 1
C18: Student | F18: =COUNTIF(C4:H8,"Student") -> 1 | M18: Student | P18: =COUNTIF(M4:R8,"Student") -> 0
C19: Discount | F19: =COUNTIF(C4:H8,"Special") -> 0 | M19: Discount | P19: =COUNTIF(M4:R8,"Special") -> 0
C20: Total Attending | F20: =SUM(F17:F19) -> 6 | M20: Total Attending | P20: =SUM(P17:P19) -> 1
C21: Percentage | F21: =F20/F15 -> 0.2 | M21: Percentage | P21: =P20/P15 -> 0.03333333333
C22: Class? :3 | F22: =IF(F21>=60%,"Yes","No") -> No | M22: Class? :3 | P22: =IF(P21>=60%,"Yes","No") -> No

Sheet Statistics
A1: Student | B1: UNSC Authorized Personels only
A2: Adult
A3: Special
A4: Free
B5: Amount of People attending | J5: Total
B6: Monday | E6: =Monday!G21+Monday!P21 -> 42 | G6: Wen Mor | J6: =Wensday!F20 -> 20
B7: Wensday | E7: =Wensday!F20+Wensday!P20 -> 30 | G7: Wen Even | J7: =Wensday!P20 -> 10
B8: Friday | E8: =Friday!F20+Friday!P20 -> 7 | G8: Monday Morning | J8: =Monday!G21 -> 12
B9: All | E9: =SUM(E6:E8) -> 79 | G9: Monday Evening | J9: =Monday!P21 -> 30
G10: Fri Even | J10: =Friday!P20 -> 1
G11: Fir Morn | J11: =Friday!F20 -> 6
B12: Type people
B13: Adult | E13: =Monday!G19+Monday!P19+Wensday!F17+Wensday!P17+Friday!F17+Friday!P17 -> 66
B14: Student | E14: =Monday!G18+Monday!P18+Wensday!F18+Wensday!P18+Friday!F18+Friday!P18 -> 1
B15: Special | E15: =Monday!G20+Monday!P20+Wensday!F19+Wensday!P19+Friday!F19+Friday!P19 -> 12
B16: Total | E16: =SUM(E13:E15) -> 79
B19: Type Booking
B20: Morning | E20: =Monday!G21+Wensday!F20+Friday!F20 -> 38
B21: Evening | E21: =Monday!P21+Wensday!P20+Friday!P20 -> 41

Sheet Calculation
B1: Name of Service | C1: Fixed Price | E1: Outputs | F1: Output per Week
B2: Hire Classroom (Per Week, must paid) | C2: 2400 | E2: Always Paid | F2: 2400
B3: Cost teaching Material (Per Person) | C3: 20 | E3: Others | F3: =C8+C5+(C4*3) -> 2240
B4: Transport for Tutorb (Per Day) | C4: 60
B5: Advertising (Per Week) | C5: 480
B7: Amount of person attending | C7: =Statistics!E9 -> 79 | E7: Total output | F7: =SUM(F2:F6) -> 4640
B8: Amount of Cash needed for material | C8: =C7*C3 -> 1580
B10: Ticket Price | C10: Price | E10: Ticket Income | F10: Input Per Week
B11: Adult | C11: 180 | E11: Adult | F11: =C11*Statistics!E13 -> 11880
B12: Student | C12: 120 | E12: Student | F12: =C12*Statistics!E14 -> 120
B13: Special | C13: 100 | E13: Special | F13: =C13*Statistics!E15 -> 1200
E15: Total Income | F15: =SUM(F11:F14) -> 13200
E18: Income before Ouput | F18: =F15 -> 13200
E19: Total Profit | F19: =F15-F7 -> 8560

Sheet Updates
A1: Today's Date
A2: =TODAY() -> 2008-11-27 | C2: Date | D2: 2008-11-25 | E2: 2008-11-25 | F2: 2008-11-25 | G2: 2008-11-25
C3: Amount Output | D3: 6660 | E3: 6660 | F3: 6660 | G3: 3060
C4: Seats Booked | D4: 180 | E4: 180 | F4: 180 | G4: 0
C5: Amount of Student | D5: 0 | E5: 60 | F5: 60 | G5: 0
C6: Amount of Adult | D6: 180 | E6: 60 | F6: 60 | G6: 0
C7: Amount of Special | D7: 0 | E7: 60 | F7: 60 | G7: 0
C8: Amount Input | D8: 32400 | E8: 24000 | F8: 24000 | G8: 0
C9: Profit | D9: 25740 | E9: 17340 | F9: 17340 | G9: -3060
